bitfinex-derivatives/quotes_SOLF0:USTF0_20250626
["timestamp","ask_amount","ask_price","bid_price","bid_amount"]
[1750928442224,6.8998,144.86,144.83,6.9006]
[1750928443928,6.8998,144.86,144.84,6.9003]
[1750928445827,6.8998,144.86,144.83,6.9006]
[1750928446125,39.90263317,144.88,144.8,37.56953317]
[1750928446527,39.90263317,144.88,144.82,6.9012]
[1750928446925,39.90263317,144.88,144.8,37.56953317]
[1750928447224,6.9,144.85,144.83,6.9008]
[1750928447425,6.9,144.85,144.8,37.56953317]
[1750928447730,6.9,144.85,144.82,6.9011]
[1750928448328,6.9,144.85,144.83,6.9008]
[1750928448531,6.8997,144.86,144.83,6.9008]
[1750928449728,6.9,144.85,144.82,6.9011]
[1750928450635,6.9,144.85,144.83,6.9008]
[1750928451131,6.8996,144.86,144.83,6.9008]
[1750928452623,620.43483317,144.96,144.84,50.48084201]
[1750928452624,4.63077583,144.95,144.84,50.48084201]
[1750928452828,4.87655488,144.94,144.88,8.60599998]
[1750928453028,6.8964,144.93,144.89,6.8977]
[1750928453435,6.8964,144.93,144.87,12.03553315]
[1750928454935,6.8964,144.93,144.89,6.8978]
[1750928455433,37.54953317,144.99,144.91,3.42953317]
[1750928456142,6.894,144.98,144.91,3.42953317]
[1750928456638,6.8943,144.97,144.94,6.8953]
[1750928459033,6.8938,144.98,144.95,6.8951]
[1750928459429,6.8938,144.98,144.91,5.68623317]
[1750928459632,44.44303317,144.99,144.93,3.42953317]
[1750928459834,34.12,144.99,144.93,3.42953317]
[1750928460144,6.8942,144.98,144.94,6.8953]
[1750928460844,3.42953317,144.97,144.91,2.2567]
[1750928462039,6.8949,144.96,144.93,6.8959]
[1750928463042,6.8952,144.95,144.92,6.8963]
[1750928463834,6.8957,144.94,144.91,6.8969]
[1750928466353,6.8957,144.94,144.9,2.3944]
[1750928466653,8.15863317,144.98,144.91,3.42953317]
[1750928466944,34.12,144.99,144.91,3.42953317]
[1750928467549,6.8945,144.97,144.94,6.8956]
[1750928473046,6.8945,144.97,144.95,6.8951]
[1750928473655,41.1579,145.02,144.96,6.8944]
[1750928473945,3.42953317,145.01,144.96,6.8944]
[1750928474148,6.8935,144.99,144.96,6.8944]
[1750928474747,6.8938,144.98,144.96,6.8944]
[1750928474954,6.8938,144.98,144.95,6.895]
[1750928475536,3.42953317,145.01,144.95,6.895]
[1750928475940,3.42953317,145.01,144.94,6.8954]
[1750928476351,3.42953317,145.01,144.93,37.60953317]
[1750928476556,6.8934,144.99,144.96,6.8946]
[1750928476854,3.42953317,145.01,144.93,37.60953317]
[1750928477248,6.8943,144.97,144.95,6.8949]
[1750928477547,6.8943,144.97,144.93,37.60953317]
[1750928477747,6.8943,144.97,144.94,6.8952]
[1750928478457,6.8941,144.98,144.95,6.895]
[1750928478858,3.42953317,145.01,144.93,34.18]
[1750928479254,6.8945,144.97,144.94,6.8955]
[1750928479959,6.8948,144.96,144.93,41.0759]
[1750928480657,6.8951,144.95,144.93,34.18]
[1750928483466,6.8949,144.96,144.93,34.18]
[1750928484455,6.8949,144.96,144.93,41.0761]
[1750928487463,6.8944,144.97,144.94,6.8956]
[1750928488758,6.8939,144.98,144.95,6.8951]
[1750928488965,6.8939,144.98,144.93,37.60953317]
[1750928489267,6.8935,144.99,144.96,6.8947]
[1750928489759,595.66,145.1,144.95,3.42953317]
[1750928489951,2.369,145.06,144.97,3.42953317]
[1750928490154,5.79853317,145.06,144.98,34.16]
[1750928490352,3.42953317,145.04,144.98,34.16]
[1750928490559,3.42953317,145.02,144.98,34.16]
[1750928490857,3.42953317,145.02,144.95,38.8899]
[1750928491056,3.42953317,145.02,144.95,36.4511]
[1750928491454,6.8928,145.0,144.97,6.8941]
[1750928491762,3.42953317,145.02,144.97,6.8941]
[1750928492161,3.42953317,145.02,144.98,6.8937]
[1750928492666,6.892,145.02,145.0,6.8927]
[1750928492961,3.42953317,145.05,144.97,3.42953317]
[1750928493367,6.8912,145.04,145.01,6.8921]
[1750928495369,6.8914,145.03,145.01,6.8921]
[1750928496468,1.20010346,145.08,145.01,3.42953317]
[1750928496664,3.42953317,145.08,144.99,37.66953317]
[1750928497170,6.8907,145.05,145.02,6.8918]
[1750928497370,6.8907,145.05,144.99,37.66953317]
[1750928497572,6.8907,145.05,145.01,6.8922]
[1750928497771,6.8907,145.05,144.99,37.66953317]
[1750928498272,6.8911,145.04,145.01,6.892]
[1750928498568,3.42953317,145.07,145.01,6.892]
[1750928498870,6.8911,145.04,145.01,6.892]
[1750928499071,3.42953317,145.07,145.01,6.892]
[1750928499463,6.8912,145.04,145.01,6.892]
[1750928499772,3.42953317,145.07,145.01,6.892]
[1750928500966,6.8914,145.03,145.01,6.892]
[1750928501572,37.66953317,145.07,144.99,34.24]
[1750928502074,3.42953317,145.05,144.99,34.24]
[1750928502475,6.8928,145.0,144.99,34.24]
[1750928507968,3.42953317,145.02,144.95,2.2911]
[1750928508174,3.42953317,145.02,144.96,34.24]
[1750928509070,6.8936,144.99,144.96,41.1346]
[1750928509580,6.8936,144.99,144.97,6.8941]
[1750928511780,6.8936,144.99,144.96,34.24]
[1750928511781,3.42953317,145.01,144.96,34.24]
[1750928511976,3.42953317,144.99,144.93,34.24]
[1750928512381,6.8945,144.97,144.94,6.8953]
[1750928512881,6.8945,144.97,144.95,6.8951]
[1750928514883,6.8945,144.97,144.94,6.8954]
[1750928515584,6.8948,144.96,144.94,6.8954]
[1750928515881,3.42953317,144.99,144.94,6.8954]
[1750928516286,6.8944,144.97,144.94,6.8954]
[1750928517178,6.8947,144.96,144.94,6.8954]
[1750928518277,6.8944,144.97,144.94,6.8954]
[1750928519383,3.42953317,144.99,144.94,6.8954]
[1750928520586,6.8948,144.96,144.94,6.8954]
[1750928524494,6.8943,144.97,144.93,34.24]
[1750928525187,6.8939,144.98,144.93,34.24]
[1750928525394,6.8939,144.98,144.93,37.66953317]
[1750928525895,6.8939,144.98,144.95,6.8949]
[1750928526190,6.8942,144.97,144.95,6.8949]
[1750928526393,37.64953317,144.99,144.92,8.56589815]
[1750928526696,3.42953317,144.97,144.91,8.56589815]
[1750928526997,6.895,144.96,144.93,6.8958]
[1750928528997,6.8944,144.97,144.92,8.56589815]
[1750928529189,37.64953317,144.99,144.92,8.56589815]
[1750928529393,34.22,144.99,144.96,6.8945]
[1750928529696,3.42953317,145.01,144.96,6.8945]
[1750928529892,6.8937,144.99,144.96,6.8945]
[1750928530086,3.42953317,145.01,144.96,6.8945]
[1750928530798,6.8938,144.98,144.96,6.8945]
[1750928531406,3.42953317,144.99,144.94,34.22]
[1750928532096,6.8947,144.96,144.94,41.1154]
[1750928534295,6.8951,144.95,144.94,34.22]
[1750928534493,6.8951,144.95,144.93,6.8959]
[1750928534696,3.42953317,144.97,144.93,6.8959]
[1750928534892,6.895,144.96,144.93,6.8959]
[1750928535496,6.8952,144.95,144.93,6.8959]
[1750928536900,6.8949,144.96,144.94,6.8956]
[1750928537598,6.8952,144.95,144.93,6.8958]
[1750928543601,6.8952,144.95,144.92,15.46219815]
[1750928543809,6.8956,144.94,144.91,34.22]
[1750928544098,6.8956,144.94,144.91,41.1168]
[1750928544292,6.8961,144.93,144.91,41.1168]
[1750928544802,3.42953317,144.95,144.91,34.22]
[1750928545002,37.64953317,144.95,144.88,36.584]
[1750928545700,3.42953317,144.93,144.88,36.584]
[1750928546604,3.42953317,144.93,144.89,6.8978]
[1750928546804,3.42953317,144.93,144.88,36.584]
[1750928547601,6.8968,144.92,144.88,36.584]
[1750928548609,10.32583317,144.93,144.9,6.8974]
[1750928548802,37.64953317,144.95,144.9,6.8974]
[1750928549298,6.8966,144.93,144.9,6.8974]
[1750928549699,6.8965,144.93,144.9,6.8974]
[1750928549893,37.64953317,144.95,144.9,6.8974]
[1750928550298,6.8966,144.93,144.9,6.8974]
[1750928551312,6.8966,144.92,144.9,6.8974]
[1750928551803,6.8963,144.93,144.9,6.8974]
[1750928551998,37.64953317,144.95,144.88,45.14989815]
[1750928552207,44.54493317,144.95,144.9,8.56589815]
[1750928552508,3.42953317,144.97,144.9,8.56589815]
[1750928553009,3.42953317,144.97,144.94,6.8954]
[1750928553511,6.895,144.96,144.94,6.8955]
[1750928553711,6.895,144.96,144.92,8.56589815]
[1750928554800,6.895,144.96,144.93,6.8959]
[1750928554996,3.42953317,144.97,144.88,38.9821]
[1750928554997,3.42953317,144.95,144.9,8.56589815]
[1750928555197,3.42953317,144.93,144.88,38.9821]
[1750928555401,3.42953317,144.93,144.89,6.8977]
[1750928555705,6.8968,144.92,144.89,6.8977]
[1750928556908,3.42953317,144.93,144.88,34.22]
[1750928557109,3.42953317,144.91,144.88,34.22]
[1750928557411,6.8975,144.9,144.85,167.1]
[1750928558207,10.32673317,144.91,144.85,170.52953317]
[1750928558507,3.42953317,144.91,144.85,170.52953317]
[1750928558712,6.8976,144.9,144.87,6.8988]
[1750928561422,6.8976,144.9,144.85,170.52953317]
[1750928562715,6.8976,144.9,144.88,6.8983]
[1750928563318,6.8972,144.91,144.88,6.8983]
[1750928565010,6.8972,144.91,144.86,6.899]
[1750928565218,6.8972,144.91,144.85,179.09543132]
[1750928565710,6.8972,144.91,144.88,6.8982]
[1750928567417,3.42953317,144.93,144.88,6.8982]
[1750928568410,6.8973,144.91,144.88,6.8982]
[1750928571420,6.8977,144.9,144.88,6.8982]
[1750928574231,6.8973,144.91,144.86,8.56589815]
[1750928574920,6.8973,144.91,144.89,6.8978]
[1750928575133,34.18,144.94,144.87,11.99543132]
[1750928575626,6.8964,144.93,144.87,11.99543132]
[1750928576524,6.8964,144.93,144.91,6.897]
[1750928578227,6.8957,144.94,144.91,6.897]
[1750928578525,3.42953317,144.95,144.91,6.897]
[1750928579028,6.8959,144.94,144.89,42.74589815]
[1750928580128,6.8959,144.94,144.91,6.8967]
[1750928581730,6.8959,144.94,144.89,42.74589815]
[1750928582922,6.8959,144.94,144.91,6.8968]
[1750928584536,3.42953317,144.93,144.88,8.56589815]
[1750928585029,6.8969,144.92,144.89,6.8979]
[1750928585430,3.42953317,144.93,144.89,6.8979]
[1750928585629,6.8973,144.91,144.88,15.46409815]
[1750928588032,6.8973,144.91,144.89,6.8979]
[1750928588629,6.8968,144.92,144.89,6.8979]
[1750928589436,6.8968,144.92,144.89,15.46379815]
[1750928590628,6.8968,144.92,144.9,6.8973]
[1750928590829,6.8963,144.93,144.89,8.56589815]
[1750928591029,6.8963,144.93,144.9,8.56589815]
[1750928592040,6.8958,144.94,144.9,8.56589815]
[1750928592536,10.32493317,144.95,144.92,6.8965]
[1750928594240,6.8957,144.94,144.92,6.8965]
[1750928594439,6.8957,144.94,144.91,6.8968]
[1750928594842,6.8957,144.94,144.92,6.8965]
[1750928596344,6.8957,144.94,144.91,6.8968]
[1750928596536,6.8957,144.94,144.9,8.56589815]
[1750928596940,6.8957,144.94,144.91,6.8966]
[1750928599132,6.8957,144.94,144.92,6.8965]
[1750928600245,9.08809724,144.94,144.92,6.8965]
[1750928600433,6.8957,144.94,144.92,6.8965]
[1750928602946,6.8957,144.94,144.91,6.897]
[1750928603242,6.8961,144.93,144.91,6.897]
[1750928603741,6.8967,144.92,144.9,49.60329815]
[1750928604241,2.19239724,144.93,144.9,49.60329815]
[1750928604742,36.5921,144.97,144.9,42.70589815]
[1750928604945,9.08939724,144.91,144.88,8.56589815]
[1750928605138,2.19239724,144.9,144.88,8.56589815]
[1750928605334,2.19239724,144.9,144.88,15.46409815]
[1750928605739,2.19239724,144.91,144.89,6.8977]
[1750928606034,9.08909724,144.92,144.89,6.8977]
[1750928606238,6.8971,144.91,144.89,15.46359815]
[1750928606435,6.8971,144.91,144.89,8.56589815]
[1750928607445,6.8971,144.91,144.88,15.46419815]
[1750928609353,6.8971,144.91,144.89,8.56589815]
[1750928610451,6.8971,144.91,144.89,15.46389815]
[1750928610652,6.8975,144.9,144.89,8.56589815]
[1750928610846,6.8975,144.9,144.88,8.56589815]
[1750928611047,3.426612,144.92,144.88,8.56589815]
[1750928611239,6.898,144.89,144.88,8.56589815]
[1750928612448,6.898,144.89,144.87,8.56589815]
[1750928612648,6.8978,144.9,144.87,15.46479815]
[1750928613349,3.426612,144.92,144.87,8.56589815]
[1750928613545,36.4949,144.93,144.88,8.56589815]
[1750928613958,6.8973,144.91,144.88,15.46389815]
[1750928615253,6.8968,144.92,144.89,6.8979]
[1750928616854,6.8972,144.91,144.88,8.56589815]
[1750928617354,6.8972,144.91,144.89,8.56589815]
[1750928619145,6.8972,144.91,144.89,15.46389815]
[1750928623555,6.8968,144.92,144.9,6.8975]
[1750928623961,34.14,144.96,144.9,8.56589815]
[1750928624563,6.8957,144.94,144.91,6.8967]
[1750928626161,6.8953,144.95,144.92,6.8965]
[1750928627260,6.8957,144.94,144.91,6.8968]
[1750928628464,6.8957,144.94,144.91,9.0889376]
[1750928630467,6.8957,144.94,144.91,6.8968]
[1750928631566,6.8957,144.94,144.91,9.0889376]
[1750928633263,9.0874376,144.95,144.92,6.8963]
[1750928633464,2.1921376,144.97,144.93,2.1921376]
[1750928633860,6.895,144.96,144.93,9.0880376]
[1750928634170,9.0871376,144.96,144.93,6.8959]
[1750928635166,6.8953,144.95,144.93,6.896]
[1750928635364,9.0874376,144.95,144.93,6.896]
[1750928635766,9.0874376,144.95,144.92,17.65433575]
[1750928636475,6.8961,144.93,144.92,8.56589815]
[1750928636666,2.1921376,144.93,144.9,8.56589815]
[1750928636865,2.1921376,144.91,144.9,8.56589815]
[1750928637063,9.0885376,144.93,144.9,15.46319815]
[1750928638271,6.8964,144.93,144.9,15.46319815]
[1750928638469,6.8964,144.93,144.91,6.897]
[1750928638669,3.42623296,144.94,144.9,8.56589815]
[1750928639371,6.8962,144.93,144.9,15.46319815]
[1750928640065,6.8967,144.92,144.9,15.46319815]
[1750928640665,3.42623296,144.94,144.88,42.70589815]
[1750928640871,3.42623296,144.92,144.88,42.70589815]
[1750928641272,6.8976,144.9,144.88,49.60409815]
[1750928641865,6.8973,144.91,144.89,6.8979]
[1750928645373,6.8973,144.91,144.88,49.60409815]
[1750928648176,6.8973,144.91,144.89,6.898]
[1750928649375,6.8968,144.92,144.89,6.898]
[1750928655874,6.8968,144.92,144.9,6.8975]
[1750928656578,6.8968,144.92,144.88,42.70589815]
[1750928656780,6.8968,144.92,144.89,6.8976]
[1750928658279,6.8968,144.92,144.9,6.8975]
[1750928660284,9.08969791,144.92,144.9,6.8975]
[1750928660780,9.08969791,144.92,144.88,44.89879606]
[1750928660781,2.19289791,144.92,144.91,6.897]
[1750928660981,36.33289791,144.95,144.9,2.19289791]
[1750928661178,36.33289791,144.95,144.91,8.56589815]
[1750928662381,6.8958,144.94,144.92,6.8965]
[1750928662682,6.8958,144.94,144.91,8.56589815]
[1750928663283,6.8958,144.94,144.91,15.46269815]
[1750928664482,6.8958,144.94,144.91,17.65559606]
[1750928666683,9.08839791,144.95,144.92,6.8965]
[1750928667580,9.08779791,144.96,144.92,2.19289791]
[1750928667784,9.08779791,144.96,144.93,2.19289791]
[1750928668182,2.19289791,144.99,144.95,2.19289791]
[1750928668473,2.19289791,145.01,144.97,2.19289791]
[1750928668678,2.19289791,145.02,144.97,2.19289791]
[1750928668881,6.8925,145.01,144.98,6.8934]
[1750928669178,6.8925,145.01,144.97,2.19289791]
[1750928669378,6.8925,145.01,144.98,6.8934]
[1750928669582,6.8925,145.01,144.98,9.08629791]
[1750928670283,6.8925,145.01,144.98,6.8934]
[1750928670887,6.8925,145.01,144.96,37.56189833]
[1750928671286,6.8925,145.01,144.98,6.8933]
[1750928673997,4.7149,145.03,144.96,37.56189833]
[1750928674386,6.893,145.0,144.97,6.8938]
[1750928676085,6.8934,144.99,144.96,41.0345]
[1750928678602,6.893,145.0,144.97,6.8941]
[1750928679489,3.42189833,145.02,144.96,41.0345]
[1750928679685,5.87719833,145.02,144.96,41.0345]
[1750928680086,3.42189833,145.0,144.96,41.0345]
[1750928680597,6.8938,144.98,144.96,41.0345]
[1750928680793,3.42189833,145.0,144.96,34.14]
[1750928681196,3.42189833,145.0,144.95,6.895]
[1750928681897,37.54189833,145.0,144.94,6.8955]
[1750928682194,3.42189833,144.98,144.94,6.8955]
[1750928682606,6.8943,144.97,144.94,6.8955]
[1750928683493,6.8947,144.96,144.94,6.8955]
[1750928686901,6.8944,144.97,144.95,6.8951]
[1750928687897,6.8944,144.97,144.94,6.8954]
[1750928691609,6.8944,144.97,144.95,6.8951]
[1750928691818,6.8944,144.97,144.93,34.12]
[1750928692216,6.8944,144.97,144.94,9.08661679]
[1750928692921,6.8943,144.97,144.94,9.08651679]
[1750928694419,6.8943,144.97,144.94,6.8953]
[1750928694821,2.19121679,144.98,144.94,6.8953]
[1750928694822,6.8948,144.96,144.94,6.8953]
[1750928695026,2.19121679,144.97,144.93,43.20711679]
[1750928695513,6.895,144.96,144.93,43.20711679]
[1750928701017,2.19121679,144.96,144.93,34.12]
[1750928701719,6.8948,144.96,144.93,43.20701679]
[1750928702909,6.8948,144.96,144.94,6.8955]
[1750928703915,6.8945,144.97,144.93,34.12]
[1750928704112,9.08571679,144.97,144.93,36.31121679]
[1750928704825,9.08571679,144.97,144.94,6.8953]
[1750928705817,9.08571679,144.97,144.95,6.8951]
[1750928706020,6.8945,144.97,144.95,6.8951]
[1750928706522,9.08521679,144.98,144.96,6.8944]
[1750928706724,6.894,144.98,144.96,6.8944]
[1750928707722,9.08521679,144.98,144.96,6.8944]
[1750928708728,9.08521679,144.98,144.95,6.8949]
[1750928709325,2.19121679,144.98,144.95,6.8949]
[1750928709722,6.8942,144.97,144.95,6.8949]
[1750928710725,9.08511679,144.98,144.96,6.8945]
[1750928712533,2.19121679,144.98,144.97,6.8942]
[1750928712727,2.19045094,145.0,144.96,10.76852641]
[1750928713426,9.08345094,145.0,144.97,6.8938]
[1750928714221,2.19045094,145.0,144.97,6.8938]
[1750928714426,2.19045094,144.99,144.96,8.57807547]
[1750928714627,2.19045094,144.98,144.95,8.57807547]
[1750928714828,9.08385094,144.99,144.96,6.8944]
[1750928715031,9.08385094,144.99,144.96,15.47247547]
[1750928716038,6.8934,144.99,144.96,15.47247547]
[1750928716233,9.08385094,144.99,144.96,15.47247547]
[1750928718938,6.8939,144.98,144.96,15.47247547]
[1750928719539,9.08440107,144.99,144.96,6.8944]
[1750928719739,2.19090107,144.99,144.96,6.8944]
[1750928720441,6.8937,144.98,144.96,6.8944]
[1750928722534,9.08440107,144.99,144.96,6.8944]
[1750928722942,9.08440107,144.99,144.97,6.8942]
[1750928723348,9.08390107,145.0,144.96,10.76897654]
[1750928724549,9.08390107,145.0,144.98,6.8935]
[1750928725344,9.08340107,145.01,144.98,6.8935]
[1750928726142,9.08340107,145.01,144.99,6.8932]
[1750928727440,9.08290107,145.02,144.97,44.88897654]
[1750928727646,9.08290107,145.02,145.0,6.8928]
[1750928728346,6.8923,145.01,144.99,6.893]
[1750928730948,9.08320107,145.01,144.99,6.893]
[1750928735144,9.08290107,145.02,145.0,6.8926]
[1750928736250,6.892,145.02,145.0,6.8926]
[1750928736451,9.08290107,145.02,145.0,6.8926]
[1750928738454,6.8923,145.01,144.97,42.69807547]
[1750928738643,9.08320107,145.01,144.97,44.88897654]
[1750928738937,2.19090107,145.01,144.97,44.88897654]
[1750928739552,2.19090107,145.01,144.99,6.893]
[1750928739855,2.19090107,145.01,144.97,44.88897654]
[1750928740154,9.08300107,145.02,144.98,2.19090107]
[1750928740352,2.19090107,145.02,145.0,6.8925]
[1750928741553,2.19090107,145.07,145.01,36.29090107]
[1750928741750,2.19090107,145.07,145.03,2.19090107]
[1750928741953,9.08060107,145.07,145.03,9.08190107]
[1750928742255,2.19090107,145.07,145.03,2.19090107]
[1750928742455,2.19090107,145.07,145.05,6.8902]
[1750928743157,2.19090107,145.06,145.03,2.19090107]
[1750928743456,2.19090107,145.06,145.02,2.19090107]
[1750928743848,9.08090107,145.06,145.03,6.8913]
[1750928744047,9.08090107,145.06,145.02,2.19090107]
[1750928744250,6.89,145.06,145.01,37.51967415]
[1750928744454,6.89,145.06,145.03,6.8909]
[1750928744956,6.89,145.06,145.01,37.51967415]
[1750928746061,6.89,145.06,145.04,6.8908]
[1750928746558,6.8897,145.07,145.04,6.8906]
[1750928747059,6.89,145.06,145.04,6.8906]
[1750928748356,6.89,145.06,145.03,6.8911]
[1750928748961,6.89,145.06,145.04,6.8909]
[1750928757473,3.41967415,145.09,145.01,34.1]
[1750928757682,3.41967415,145.05,145.01,34.1]
[1750928757874,6.8897,145.07,145.01,37.51967415]
[1750928758075,3.41967415,145.1,145.03,3.41967415]
[1750928759472,6.8889,145.09,145.06,6.8897]
[1750928760671,6.8886,145.09,145.07,6.8893]
[1750928766382,9.07646318,145.09,145.07,6.8893]
[1750928766979,6.8886,145.09,145.07,6.8893]
[1750928767180,9.07646318,145.09,145.07,6.8893]
[1750928768483,2.18786318,145.08,145.01,42.66017697]
[1750928768782,2.18786318,145.07,145.04,2.18786318]
[1750928768975,2.18786318,145.08,145.04,2.18786318]
[1750928769171,6.8897,145.07,145.05,6.8902]
[1750928769677,6.8893,145.08,145.06,6.8898]
[1750928770573,6.8893,145.08,145.05,9.07806318]
[1750928772779,34.08,145.11,145.05,2.18786318]
[1750928772978,6.8887,145.09,145.06,9.07746318]
[1750928773781,6.8887,145.09,145.06,6.8896]
[1750928773981,6.889,145.08,145.06,6.8896]
[1750928775278,34.06,145.13,145.07,2.18786318]
[1750928775477,34.06,145.13,145.1,2.18786318]
[1750928776786,2.18786318,145.14,145.06,45.02387697]
[1750928776979,36.24786318,145.13,145.09,2.18786318]
[1750928777286,6.8874,145.12,145.09,9.07636318]
[1750928777485,36.24786318,145.13,145.09,2.18786318]
[1750928777783,6.8877,145.11,145.09,2.18786318]
[1750928777990,36.24786318,145.13,145.09,2.18786318]
[1750928778286,6.888,145.11,145.08,6.8888]
[1750928781090,6.8882,145.1,145.08,6.8888]
[1750928781589,6.8878,145.11,145.08,6.8888]
[1750928784087,6.8881,145.1,145.08,6.8888]
[1750928787182,3.41693225,145.1,145.05,8.56017697]
[1750928787385,3.41693225,145.1,145.03,11.97710922]
[1750928787785,6.8892,145.08,145.06,6.8898]
[1750928787986,3.41693225,145.1,145.06,6.8898]
[1750928788181,7.95853225,145.12,145.05,3.41693225]
[1750928788385,7.95853225,145.12,145.08,6.8887]
[1750928789787,6.888,145.1,145.08,6.8887]
[1750928791388,40.9278,145.11,145.08,6.8887]
[1750928792694,6.8881,145.1,145.08,6.8887]
[1750928792894,6.8881,145.1,145.07,6.8892]
[1750928794295,6.8881,145.1,145.08,6.8889]
[1750928798094,34.04,145.11,145.08,6.8889]
[1750928798698,6.8881,145.1,145.08,6.8889]
[1750928799392,40.9278,145.11,145.08,6.8889]
[1750928799895,6.8878,145.11,145.09,6.8884]
[1750928800099,40.9273,145.12,145.06,11.97710922]
[1750928800792,34.04,145.12,145.06,11.97710922]
[1750928801200,34.04,145.12,145.06,46.01710922]
[1750928801695,40.9271,145.12,145.1,6.8878]
[1750928803402,6.8871,145.12,145.1,6.8878]
[1750928805398,37.45693225,145.14,145.07,8.56017697]
[1750928805606,5.02748038,145.13,145.06,46.01710922]
[1750928805801,41.93625669,145.14,145.06,46.01710922]
[1750928806003,5.03331176,145.13,145.06,46.01710922]
[1750928806200,6.8875,145.12,145.09,6.8882]
[1750928806708,6.8876,145.11,145.09,6.8882]
[1750928806910,5.03348213,145.13,145.08,6.8888]
[1750928807110,3.41693225,145.12,145.08,6.8888]
[1750928807404,3.41693225,145.12,145.06,34.04]
[1750928807605,3.41693225,145.12,145.07,6.8892]
[1750928807810,38.5487,145.14,145.06,34.04]
[1750928808005,3.41693225,145.12,145.06,34.04]
[1750928809015,3.41693225,145.12,145.08,6.8887]
[1750928809412,6.8885,145.09,145.07,15.47533177]
[1750928811215,6.889,145.08,145.07,15.47533177]
[1750928811404,6.889,145.08,145.07,8.58613177]
[1750928812212,6.8887,145.09,145.07,15.47553177]
[1750928813314,6.8883,145.1,145.08,6.889]
[1750928813818,34.04,145.12,145.09,6.8885]
[1750928814912,40.9274,145.12,145.1,6.888]
[1750928816014,6.8874,145.12,145.1,6.888]
[1750928817216,6.8874,145.12,145.1,15.47413177]
[1750928818912,597.7876,145.15,145.11,6.8875]
[1750928819114,631.8276,145.15,145.11,6.8875]
[1750928819324,631.8276,145.15,145.1,8.58613177]
[1750928819611,631.8276,145.15,145.03,12.89289325]
[1750928819612,3.42050544,145.11,145.03,12.89289325]
[1750928819818,3.42050544,145.05,144.98,5.67790544]
[1750928820118,9.51142309,145.09,144.98,5.67790544]
[1750928820309,3.42085485,145.06,144.99,34.04]
[1750928820507,3.42085485,145.04,144.99,34.04]
[1750928820706,3.42085485,145.04,144.96,3.42085485]
[1750928820707,3.42085485,145.0,144.96,34.04]
[1750928820905,6.8947,144.96,144.93,34.04]
[1750928821210,6.8947,144.96,144.9,6.8743]
[1750928821211,3.42085485,144.96,144.9,40.9143]
[1750928821515,6.8946,144.97,144.9,40.9143]
[1750928821718,37.46085485,144.98,144.9,40.9143]
[1750928822511,6.895,144.96,144.92,6.8963]
[1750928822822,34.04,144.98,144.9,40.9143]
[1750928823017,9.95599024,145.01,144.95,6.8948]
[1750928823018,6.8933,144.99,144.95,6.8948]
[1750928823214,37.46085485,145.01,144.9,40.9143]
[1750928823413,3.42085485,144.97,144.9,40.9143]
[1750928823715,3.42085485,144.95,144.9,40.9143]
[1750928824112,10.31625485,144.95,144.91,6.8968]
[1750928824421,3.42085485,144.95,144.9,40.9143]
[1750928824815,10.31625485,144.95,144.91,6.8968]
[1750928825016,3.42085485,144.95,144.91,6.8968]
[1750928825214,6.8959,144.94,144.9,47.8114]
[1750928825520,3.42085485,144.95,144.9,40.9143]
[1750928826220,37.46085485,144.97,144.9,40.9143]
[1750928826420,6.8947,144.96,144.92,6.8963]
[1750928826621,6.8947,144.96,144.9,40.9143]
[1750928827520,6.8947,144.96,144.93,6.896]
[1750928827917,6.8947,144.96,144.9,40.9143]
[1750928828119,37.46085485,144.97,144.9,40.9143]
[1750928828314,44.35515485,144.97,144.9,40.9143]
[1750928828512,37.46085485,144.97,144.9,40.9143]
[1750928829116,37.46085485,144.97,144.92,6.8963]
[1750928829316,37.46085485,144.97,144.9,40.9143]
[1750928829727,6.8957,144.94,144.9,36.2974]
[1750928830021,3.42085485,144.93,144.87,34.58]
[1750928830226,3.42085485,144.93,144.89,6.8977]